fUST/lending_fUST_20250905
["ID","MTS","AMOUNT","RATE_DAILY","PERIOD"]
[383608635,1757029841901,-480.0,0.00015818,2]
[383608636,1757029841911,-480.0,0.00015818,2]
[383608637,1757029841920,-480.0,0.00015818,2]
[383608638,1757029841931,-541.52,0.00015818,2]
[383608639,1757029841941,-480.0,0.00015818,2]
[383608640,1757029841950,-480.0,0.00015818,2]
[383608641,1757029841959,-151.0,0.00015818,2]
[383608642,1757029841969,-480.0,0.00015819,2]
[383608643,1757029841979,-312.8,0.00015819,2]
[383608644,1757029841989,-480.0,0.00015819,2]
[383608645,1757029841998,-480.0,0.00015819,2]
[383608646,1757029842008,-480.0,0.00015819,2]
[383608647,1757029842018,-480.0,0.00015819,2]
[383608648,1757029842027,-480.0,0.00015819,2]
[383608649,1757029842037,-480.0,0.00015819,2]
[383608650,1757029842046,-480.0,0.00015819,2]
[383608651,1757029842056,-480.0,0.00015819,2]
[383608652,1757029842066,-480.0,0.00015819,2]
[383608653,1757029842076,-480.0,0.00015819,2]
[383608654,1757029842085,-480.0,0.00015819,2]
[383608655,1757029842095,-480.0,0.00015819,2]
[383608656,1757029842104,-480.0,0.00015819,2]
[383608657,1757029842114,-480.0,0.00015819,2]
[383608658,1757029842123,-480.0,0.00015819,2]
[383608659,1757029842133,-480.0,0.00015819,2]
[383608660,1757029842143,-480.0,0.00015819,2]
[383608661,1757029842156,-480.0,0.00015819,2]
[383608662,1757029842165,-480.0,0.00015819,2]
[383608663,1757029842175,-480.0,0.00015819,2]
[383608664,1757029842184,-480.0,0.00015819,2]
[383608665,1757029842193,-480.0,0.00015819,2]
[383608666,1757029842202,-480.0,0.00015819,2]
[383608667,1757029842212,-573.9,0.00015819,2]
[383608668,1757029842221,-480.0,0.00015819,2]
[383608669,1757029842231,-480.0,0.00015819,2]
[383608670,1757029842241,-522.95,0.00015819,2]
[383608671,1757029842250,-4805.67,0.00015819,2]
[383608672,1757029842260,-480.0,0.00015819,2]
[383608673,1757029842269,-480.0,0.00015819,2]
[383608674,1757029842278,-567.27,0.00015819,2]
[383608675,1757029842288,-486.02,0.00015819,2]
[383608676,1757029842297,-480.0,0.00015819,2]
[383608677,1757029842307,-180.0,0.0001582,2]
[383608678,1757029842317,-500.0,0.0001582,2]
[383608679,1757029842326,-530.40833076,0.00015864,2]
[383608680,1757029842335,-846.4110323,0.00015864,2]
[383608681,1757029842345,-160.0,0.00015864,2]
[383608682,1757029842354,-203.15181488,0.00015864,2]
[383608683,1757029842363,-217.5338025,0.00015864,2]
[383608684,1757029842373,-417.15472785,0.00015864,2]
[383608685,1757029842383,-232.93421481,0.00015864,2]
[383608686,1757029842393,-160.0,0.00015864,2]
[383608687,1757029842402,-236.6153923,0.00015877,2]
[383608688,1757029842412,-572.76,0.00015918,2]
[383608689,1757029842421,-313.06,0.00015918,2]
[383608690,1757029842431,-332.35,0.00015918,2]
[383608691,1757029842440,-480.0,0.00015918,2]
[383608692,1757029842450,-480.0,0.00015918,2]
[383608693,1757029842459,-480.0,0.00015918,2]
[383608694,1757029842468,-480.0,0.00015918,2]
[383608695,1757029842477,-186.55579662,0.00015918,2]
[383608696,1757029842486,-480.0,0.00015918,2]
[383608697,1757029842496,-480.0,0.00015918,2]
[383608698,1757029842505,-480.0,0.00015918,2]
[383608699,1757029842514,-480.0,0.00015918,2]
[383608700,1757029842524,-480.0,0.00015918,2]
[383608701,1757029842533,-480.0,0.00015918,2]
[383608702,1757029842543,-480.0,0.00015918,2]
[383608703,1757029842551,-480.0,0.00015918,2]
[383608704,1757029842562,-480.0,0.00015918,2]
[383608705,1757029842571,-484.05125708,0.00015918,2]
[383608706,1757029842580,-481.52278622,0.00015918,2]
[383608707,1757029842590,-480.0,0.00015918,2]
[383608708,1757029842599,-480.0,0.00015918,2]
[383608709,1757029842608,-548.49334807,0.00015918,2]
[383608710,1757029842619,-480.0,0.00015918,2]
[383608711,1757029842628,-480.0,0.00015918,2]
[383608712,1757029842639,-480.0,0.00015918,2]
[383608713,1757029842648,-480.0,0.00015918,2]
[383608714,1757029842658,-480.0,0.00015918,2]
[383608715,1757029842667,-480.0,0.00015918,2]
[383608716,1757029842677,-480.0,0.00015918,2]
[383608717,1757029842686,-480.0,0.00015918,2]
[383608718,1757029842697,-481.32801457,0.00015918,2]
[383608719,1757029842707,-480.0,0.00015918,2]
[383608720,1757029842717,-480.0,0.00015918,2]
[383608721,1757029842726,-480.0,0.00015918,2]
[383608722,1757029842736,-487.28601926,0.00015918,2]
[383608723,1757029842745,-480.0,0.00015918,2]
[383608724,1757029842755,-480.0,0.00015918,2]
[383608725,1757029842764,-519.71,0.00015918,2]
[383608726,1757029842774,-480.0,0.00015918,2]
[383608727,1757029842783,-480.0,0.00015918,2]
[383608728,1757029842792,-480.0,0.00015918,2]
[383608729,1757029842802,-187.69223325,0.00015918,2]
[383608730,1757029842811,-234.70078661,0.00015918,2]
[383608731,1757029842820,-480.0,0.00015918,2]
[383608732,1757029842830,-480.0,0.00015918,2]
[383608733,1757029842839,-480.0,0.00015918,2]
[383608734,1757029842849,-480.0,0.00015918,2]
[383608735,1757029842858,-181.157472,0.00015918,2]
[383608736,1757029842868,-151.0,0.00015918,2]
[383608737,1757029842877,-480.0,0.00015918,2]
[383608738,1757029842889,-480.0,0.00015918,2]
[383608739,1757029842898,-500.0,0.0001592,2]
[383608740,1757029842908,-500.0,0.00015922,2]
[383608741,1757029842918,-5708.17846559,0.00015993,2]
[383608742,1757029842927,-480.0,0.00016091,2]
[383608743,1757029842937,-480.0,0.00016091,2]
[383608745,1757029842947,-480.0,0.00016091,2]
[383608747,1757029842957,-480.0,0.00016091,2]
[383608749,1757029842966,-480.0,0.00016091,2]
[383608751,1757029842976,-409.78,0.00016092,2]
[383608753,1757029842986,-490.11,0.00016092,2]
[383608755,1757029842996,-480.0,0.00016092,2]
[383608757,1757029843005,-480.0,0.00016092,2]
[383608759,1757029843015,-480.0,0.00016092,2]
[383608762,1757029843024,-480.0,0.00016092,2]
[383608765,1757029843034,-481.24843507,0.00016093,2]
[383608767,1757029843043,-480.0,0.00016093,2]
[383608769,1757029843052,-442.24477664,0.00016093,2]
[383608771,1757029843061,-480.0,0.00016093,2]
[383608773,1757029843071,-480.0,0.00016093,2]
[383608775,1757029843081,-480.0,0.00016093,2]
[383608776,1757029843091,-480.0,0.00016093,2]
[383608778,1757029843101,-480.0,0.00016093,2]
[383608781,1757029843110,-480.0,0.00016093,2]
[383608783,1757029843120,-480.0,0.00016093,2]
[383608785,1757029843130,-480.0,0.00016093,2]
[383608786,1757029843140,-480.0,0.00016093,2]
[383608788,1757029843151,-480.0,0.00016093,2]
[383608790,1757029843161,-287.95626978,0.00016093,2]
[383608793,1757029843171,-480.0,0.00016093,2]
[383608795,1757029843181,-480.0,0.00016093,2]
[383608796,1757029843192,-480.0,0.00016093,2]
[383608798,1757029843201,-480.0,0.00016093,2]
[383608801,1757029843212,-480.0,0.00016093,2]
[383608803,1757029843221,-480.0,0.00016093,2]
[383608804,1757029843231,-480.0,0.00016093,2]
[383608806,1757029843240,-522.95,0.00016093,2]
[383608808,1757029843250,-4805.67,0.00016093,2]
[383608810,1757029843259,-480.0,0.00016093,2]
[383608812,1757029843269,-567.27,0.00016093,2]
[383608814,1757029843278,-486.02,0.00016093,2]
[383608816,1757029843287,-151.0,0.00016093,2]
[383608818,1757029843297,-480.0,0.00016093,2]
[383608820,1757029843307,-500.0,0.00016094,2]
[383608822,1757029843317,-500.0,0.00016154,2]
[383608825,1757029843326,-500.0,0.00016186,2]
[383608826,1757029843336,-500.0,0.00016186,2]
[383608827,1757029843345,-500.0,0.00016186,2]
[383608828,1757029843354,-500.0,0.00016186,2]
[383608829,1757029843364,-480.0,0.00016192,2]
[383608830,1757029843374,-480.0,0.00016192,2]
[383608832,1757029843384,-530.99,0.00016192,2]
[383608834,1757029843394,-480.0,0.00016192,2]
[383608836,1757029843403,-480.0,0.00016192,2]
[383608838,1757029843413,-334.51292463,0.00016192,2]
[383608840,1757029843423,-559.21,0.00016192,2]
[383608842,1757029843432,-480.0,0.00016192,2]
[383608844,1757029843442,-480.0,0.00016192,2]
[383608846,1757029843451,-480.0,0.00016192,2]
[383608848,1757029843462,-480.0,0.00016192,2]
[383608850,1757029843471,-480.0,0.00016192,2]
[383608852,1757029843481,-480.0,0.00016192,2]
[383608854,1757029843490,-480.0,0.00016192,2]
[383608856,1757029843500,-480.0,0.00016192,2]
[383608858,1757029843509,-151.0,0.00016192,2]
[383608860,1757029843519,-151.0,0.00016192,2]
[383608861,1757029843529,-480.0,0.00016192,2]
[383608862,1757029843539,-480.0,0.00016192,2]
[383608863,1757029843548,-151.0,0.00016192,2]
[383608864,1757029843557,-151.0,0.00016192,2]
[383608865,1757029843566,-500.0,0.00016193,2]
[383608866,1757029843575,-500.0,0.000162,2]
[383608867,1757029843585,-500.0,0.000162,2]
[383608868,1757029843594,-500.0,0.000162,2]
[383608869,1757029843604,-504.1131352,0.00016202,2]
[383608870,1757029843614,-500.0,0.00016255,2]
[383608871,1757029843624,-432.56640123,0.00016342,2]
[383608872,1757029843634,-480.0,0.00016365,2]
[383608873,1757029843644,-480.0,0.00016365,2]
[383608874,1757029843653,-480.0,0.00016365,2]
[383608875,1757029843663,-480.0,0.00016365,2]
[383608876,1757029843672,-480.0,0.00016365,2]
[383608877,1757029843681,-480.0,0.00016366,2]
[383608878,1757029843691,-480.0,0.00016366,2]
[383608879,1757029843700,-480.0,0.00016366,2]
[383608880,1757029843710,-480.0,0.00016366,2]
[383608881,1757029843719,-151.0,0.00016367,2]
[383608882,1757029843730,-480.0,0.00016367,2]
[383608883,1757029843739,-480.0,0.00016367,2]
[383608884,1757029843749,-161.04887008,0.00016367,2]
[383608885,1757029843759,-480.0,0.00016367,2]
[383608886,1757029843768,-480.0,0.00016367,2]
[383608887,1757029843778,-303.45,0.00016367,2]
[383608888,1757029843787,-480.0,0.00016367,2]
[383608889,1757029843797,-480.0,0.00016367,2]
[383608890,1757029843807,-480.0,0.00016367,2]
[383608891,1757029843817,-480.0,0.00016367,2]
[383608892,1757029843827,-480.0,0.00016367,2]
[383608893,1757029843837,-480.0,0.00016367,2]
[383608894,1757029843847,-480.0,0.00016367,2]
[383608895,1757029843856,-522.95,0.00016367,2]
[383608896,1757029843866,-4805.67,0.00016367,2]
[383608897,1757029843875,-480.0,0.00016367,2]
[383608898,1757029843885,-567.27,0.00016367,2]
[383608899,1757029843895,-486.02,0.00016367,2]
[383608900,1757029843904,-480.0,0.00016367,2]
[383608901,1757029843914,-500.0,0.00016368,2]
[383608902,1757029843924,-500.0,0.00016377,2]
[383608903,1757029843934,-500.0,0.00016417,2]
[383608904,1757029843944,-500.0,0.00016417,2]
[383608905,1757029843955,-188.10297854,0.00016438,2]
[383608906,1757029843964,-153.898817,0.00016438,2]
[383608907,1757029843974,-500.78631096,0.00016438,2]
[383608908,1757029843984,-480.0,0.00016466,2]
[383608909,1757029843994,-554.467478,0.00016466,2]
[383608910,1757029844004,-480.0,0.00016466,2]
[383608911,1757029844014,-480.0,0.00016466,2]
[383608912,1757029844024,-480.0,0.00016466,2]
[383608913,1757029844034,-500.0,0.00016468,2]
[383608914,1757029844043,-830.58894032,0.00016532,2]
[383608915,1757029844053,-28339.57942594,0.00016541,2]
[383608916,1757029844062,-480.0,0.00016639,2]
[383608917,1757029844072,-480.0,0.00016639,2]
[383608918,1757029844082,-480.0,0.00016639,2]
[383608919,1757029844091,-480.0,0.00016639,2]
[383608920,1757029844101,-480.0,0.00016639,2]
[383608921,1757029844110,-480.0,0.0001664,2]
[383608922,1757029844119,-480.0,0.0001664,2]
[383608923,1757029844130,-480.0,0.0001664,2]
[383608924,1757029844140,-480.0,0.0001664,2]
[383608925,1757029844152,-264.645396,0.0001664,2]
[383608926,1757029844162,-480.0,0.00016641,2]
[383608927,1757029844172,-480.0,0.00016641,2]
[383608928,1757029844182,-480.0,0.00016641,2]
[383608929,1757029844191,-427.7807,0.00016641,2]
[383608930,1757029844201,-481.02,0.00016641,2]
[383608931,1757029844211,-480.0,0.00016641,2]
[383608932,1757029844221,-480.0,0.00016641,2]
[383608933,1757029844230,-480.0,0.00016641,2]
[383608934,1757029844351,-480.0,0.00016641,2]
[383608935,1757029844363,-480.0,0.00016641,2]
[383608936,1757029844374,-522.95,0.00016641,2]
[383608937,1757029844383,-4805.67,0.00016641,2]
[383608938,1757029844393,-480.0,0.00016641,2]
[383608939,1757029844403,-567.27,0.00016641,2]
[383608940,1757029844413,-486.02,0.00016641,2]
[383608941,1757029844422,-480.0,0.00016641,2]
[383608942,1757029844432,-500.0,0.00016642,2]
[383608943,1757029844442,-1000.0,0.00016702,2]
[383608944,1757029844451,-1000.0,0.00016734,2]
[383608945,1757029844461,-1000.0,0.00016734,2]
[383608946,1757029844471,-500.0,0.00016734,2]
[383608947,1757029844481,-1000.0,0.00016734,2]
[383608948,1757029844491,-480.0,0.0001674,2]
[383608949,1757029844500,-166.49093637,0.0001674,2]
[383608950,1757029844510,-500.0,0.00016742,2]
[383608951,1757029844520,-1117.49000262,0.00016748,2]
[383608952,1757029844530,-1000.0,0.00016748,2]
[383608953,1757029844539,-385.18,0.00016907,3]
[383608954,1757029844549,-420.0,0.0001691,2]
[383608955,1757029844559,-480.0,0.00016913,2]
[383608956,1757029844568,-480.0,0.00016913,2]
[383608957,1757029844579,-603.31964346,0.00016913,2]
[383608958,1757029844588,-480.0,0.00016913,2]
[383608959,1757029844598,-480.0,0.00016913,2]
[383608960,1757029844607,-480.0,0.00016914,2]
[383608961,1757029844617,-480.0,0.00016914,2]
[383608962,1757029844627,-480.0,0.00016914,2]
[383608963,1757029844637,-480.0,0.00016914,2]
[383608964,1757029844647,-395.6423415,0.00016915,2]
[383608965,1757029844656,-480.0,0.00016915,2]
[383608966,1757029844666,-480.0,0.00016915,2]
[383608967,1757029844675,-151.0,0.00016915,2]
[383608968,1757029844685,-480.0,0.00016915,2]
[383608969,1757029844695,-480.0,0.00016915,2]
[383608970,1757029844705,-480.0,0.00016915,2]
[383608971,1757029844715,-480.0,0.00016915,2]
[383608972,1757029844724,-522.95,0.00016915,2]
[383608973,1757029844734,-4805.67,0.00016915,2]
[383608974,1757029844743,-480.0,0.00016915,2]
[383608975,1757029844753,-567.27,0.00016915,2]
[383608976,1757029844763,-486.02,0.00016915,2]
[383608977,1757029844772,-480.0,0.00016915,2]
[383608978,1757029844782,-500.0,0.00016916,2]
[383608979,1757029844792,-1000.0,0.00016965,2]
[383608980,1757029844802,-175.541387,0.00016965,2]
[383608981,1757029844812,-480.0,0.00017014,2]
[383608982,1757029844822,-343.78262941,0.00017016,2]
[383608983,1757029844832,-480.0,0.00017187,2]
[383608984,1757029844842,-480.0,0.00017187,2]
[383608985,1757029844853,-480.0,0.00017187,2]
[383608986,1757029844864,-480.0,0.00017187,2]
[383608987,1757029844874,-499.90823,0.00017188,2]
[383608988,1757029844885,-480.0,0.00017188,2]
[383608989,1757029844895,-480.0,0.00017188,2]
[383608990,1757029844906,-480.0,0.00017189,2]
[383608991,1757029844915,-480.0,0.00017189,2]
[383608992,1757029844927,-480.0,0.00017189,2]
[383608993,1757029844936,-480.0,0.00017189,2]
[383608994,1757029844947,-480.0,0.00017189,2]
[383608995,1757029844957,-522.95,0.00017189,2]
[383608996,1757029844967,-4805.67,0.00017189,2]
[383608997,1757029844978,-480.0,0.00017189,2]
[383608998,1757029844987,-567.27,0.00017189,2]
[383608999,1757029844998,-486.02,0.00017189,2]
[383609000,1757029845008,-480.0,0.00017189,2]
[383609001,1757029845018,-500.0,0.0001719,2]
[383609002,1757029845028,-1500.0,0.0001725,2]
[383609003,1757029845038,-1500.0,0.00017282,2]
[383609004,1757029845048,-1500.0,0.00017282,2]
[383609005,1757029845057,-480.0,0.00017288,2]
[383609006,1757029845068,-295.0,0.00017345,2]
[383609007,1757029845077,-308.13345655,0.00017434,2]
[383609008,1757029845088,-480.0,0.00017461,2]
[383609009,1757029845099,-480.0,0.00017461,2]
[383609010,1757029845110,-480.0,0.00017461,2]
[383609011,1757029845120,-480.0,0.00017461,2]
[383609012,1757029845130,-480.0,0.00017462,2]
[383609013,1757029845140,-480.0,0.00017462,2]
[383609014,1757029845154,-151.0,0.00017463,2]
[383609015,1757029845165,-151.0,0.00017463,2]
[383609016,1757029845176,-480.0,0.00017463,2]
[383609017,1757029845186,-480.0,0.00017463,2]
[383609018,1757029845198,-480.0,0.00017463,2]
[383609019,1757029845207,-480.0,0.00017463,2]
[383609020,1757029845218,-480.0,0.00017463,2]
[383609021,1757029845229,-522.95,0.00017463,2]
[383609022,1757029845239,-4805.67,0.00017463,2]
[383609023,1757029845249,-480.0,0.00017463,2]
[383609024,1757029845259,-567.27,0.00017463,2]
[383609025,1757029845268,-486.02,0.00017463,2]
[383609026,1757029845278,-480.0,0.00017463,2]
[383609027,1757029845287,-500.0,0.00017464,2]
[383609028,1757029845297,-207.153874,0.00017473,2]
[383609029,1757029845307,-356.0,0.00017492,2]
[383609030,1757029845317,-500.0,0.00017513,2]
[383609031,1757029845327,-830.58894032,0.00017561,2]
[383609032,1757029845337,-628.64,0.00017562,2]
[383609033,1757029845347,-160.0,0.00017715,2]
[383609034,1757029845356,-151.0,0.00017718,2]
[383609035,1757029845365,-151.0,0.00017718,2]
[383609036,1757029845375,-480.0,0.00017735,2]
[383609037,1757029845385,-480.0,0.00017735,2]
[383609038,1757029845395,-480.0,0.00017735,2]
[383609039,1757029845404,-480.0,0.00017735,2]
[383609040,1757029845414,-480.0,0.00017736,2]
[383609041,1757029845424,-480.0,0.00017736,2]
[383609042,1757029845434,-480.0,0.00017737,2]
[383609043,1757029845443,-480.0,0.00017737,2]
[383609044,1757029845453,-480.0,0.00017737,2]
[383609045,1757029845463,-480.0,0.00017737,2]
[383609046,1757029845473,-307.18,0.00017737,2]
[383609047,1757029845483,-522.95,0.00017737,2]
[383609048,1757029845492,-4805.67,0.00017737,2]
[383609049,1757029845501,-480.0,0.00017737,2]
[383609050,1757029845511,-567.27,0.00017737,2]
[383609051,1757029845520,-486.02,0.00017737,2]
[383609052,1757029845529,-480.0,0.00017737,2]
[383609053,1757029845539,-500.0,0.00017738,2]
[383609054,1757029845548,-1414.66697941,0.00017798,2]
[383609055,1757029845558,-2000.0,0.0001783,2]
[383609056,1757029845567,-2000.0,0.0001783,2]
[383609057,1757029845577,-480.0,0.00018009,2]
[383609058,1757029845587,-480.0,0.00018009,2]
[383609059,1757029845597,-480.0,0.00018009,2]
[383609060,1757029845606,-480.0,0.00018009,2]
[383609061,1757029845616,-480.0,0.0001801,2]
[383609062,1757029845625,-480.0,0.0001801,2]
[383609063,1757029845635,-480.0,0.00018011,2]
[383609064,1757029845645,-353.13,0.00018011,2]
[383609065,1757029845656,-480.0,0.00018011,2]
[383609066,1757029845666,-480.0,0.00018011,2]
[383609067,1757029845676,-522.95,0.00018011,2]
[383609068,1757029845686,-4805.67,0.00018011,2]
[383609069,1757029845695,-480.0,0.00018011,2]
[383609070,1757029845705,-567.27,0.00018011,2]
[383609071,1757029845714,-486.02,0.00018011,2]
[383609072,1757029845724,-480.0,0.00018011,2]
[383609073,1757029845734,-500.0,0.00018012,2]
[383609074,1757029845743,-260.0,0.00018263,2]
[383609075,1757029845754,-492.2,0.00018283,2]
[383609076,1757029845764,-480.0,0.00018283,2]
[383609077,1757029845774,-480.0,0.00018283,2]
[383609078,1757029845783,-480.0,0.00018283,2]
[383609079,1757029845793,-480.0,0.00018284,2]
[383609080,1757029845803,-480.0,0.00018284,2]
[383609081,1757029845812,-480.0,0.00018285,2]
[383609082,1757029845822,-480.0,0.00018285,2]
[383609083,1757029845832,-480.0,0.00018285,2]
[383609084,1757029845841,-522.95,0.00018285,2]
[383609085,1757029845851,-4805.67,0.00018285,2]
[383609086,1757029845860,-480.0,0.00018285,2]
[383609087,1757029845869,-567.27,0.00018285,2]
[383609088,1757029845879,-486.02,0.00018285,2]
[383609089,1757029845888,-480.0,0.00018285,2]
[383609090,1757029845898,-500.0,0.00018286,2]
[383609091,1757029845907,-2500.0,0.00018377,2]
[383609092,1757029845916,-2500.0,0.00018377,2]
[383609093,1757029845926,-587.0,0.00018499,2]
[383609094,1757029845936,-480.0,0.00018557,2]
[383609095,1757029845947,-480.0,0.00018557,2]
[383609096,1757029845959,-480.0,0.00018557,2]
[383609097,1757029845970,-480.0,0.00018558,2]
[383609098,1757029845982,-585.94,0.00018558,2]
[383609099,1757029845992,-480.0,0.00018559,2]
[383609100,1757029846002,-480.0,0.00018559,2]
[383609101,1757029846012,-480.0,0.00018559,2]
[383609102,1757029846022,-522.95,0.00018559,2]
[383609103,1757029846032,-4805.67,0.00018559,2]
[383609104,1757029846042,-215.21094915,0.00018559,2]
[383609105,1757029846052,-567.27,0.00018559,2]
[383609106,1757029846062,-486.02,0.00018559,2]
[383609107,1757029846073,-188.86,0.00018559,2]
[383609108,1757029846083,-500.0,0.0001856,2]
[383609109,1757029846092,-830.58894032,0.00018589,2]
[383609110,1757029846102,-360.0,0.00018811,2]
[383609111,1757029846111,-480.0,0.00018831,2]
[383609112,1757029846121,-480.0,0.00018831,2]
[383609113,1757029846132,-480.0,0.00018831,2]
[383609114,1757029846143,-480.0,0.00018832,2]
[383609115,1757029846156,-480.0,0.00018833,2]
[383609116,1757029846166,-350.784,0.00018833,2]
[383609117,1757029846176,-480.0,0.00018833,2]
[383609118,1757029846186,-522.95,0.00018833,2]
[383609119,1757029846195,-4805.67,0.00018833,2]
[383609120,1757029846204,-567.27,0.00018833,2]
[383609121,1757029846213,-486.02,0.00018833,2]
[383609122,1757029846223,-529.33191851,0.00018834,2]
[383609123,1757029846233,-151.0,0.00018834,2]
[383609124,1757029846242,-239.591236,0.00018834,2]
[383609125,1757029846252,-1550.46260552,0.00018925,2]
[383609126,1757029846262,-3000.0,0.00018925,2]
[383609127,1757029846272,-480.0,0.00019105,2]
[383609128,1757029846282,-480.0,0.00019105,2]
[383609129,1757029846291,-480.0,0.00019105,2]
[383609130,1757029846301,-480.0,0.00019106,2]
[383609131,1757029846311,-480.0,0.00019107,2]
[383609132,1757029846322,-480.0,0.00019107,2]
[383609133,1757029846331,-522.95,0.00019107,2]
[383609134,1757029846341,-4805.67,0.00019107,2]
[383609135,1757029846351,-567.27,0.00019107,2]
[383609136,1757029846360,-486.02,0.00019107,2]
[383609137,1757029846370,-460.0,0.00019359,2]
[383609138,1757029846380,-321.16,0.00019379,2]
[383609139,1757029846390,-302.59,0.00019379,2]
[383609140,1757029846399,-480.0,0.00019379,2]
[383609141,1757029846409,-480.0,0.0001938,2]
[383609142,1757029846418,-480.0,0.00019381,2]
[383609143,1757029846428,-480.0,0.00019381,2]
[383609144,1757029846438,-522.95,0.00019381,2]
[383609145,1757029846448,-4805.67,0.00019381,2]
[383609146,1757029846457,-567.27,0.00019381,2]
[383609147,1757029846467,-486.02,0.00019381,2]
[383609148,1757029846476,-308.13345655,0.00019423,2]
[383609149,1757029846486,-2500.0,0.00019473,2]
[383609150,1757029846495,-2900.0,0.0001952,2]
[383609151,1757029846505,-975.0,0.00019597,2]
[383609152,1757029846514,-526.97692268,0.00019597,2]
[383609153,1757029846697,-106.02307732,0.00019597,2]
[383609154,1757029846707,-2153.0,0.00019597,2]
[383609155,1757029846717,-425.265,0.00019597,2]
[383609156,1757029846728,-4026.0,0.00019597,2]
[383609157,1757029846739,-830.58894032,0.00019618,2]
[383609158,1757029846775,-480.0,0.00019653,2]
[383609159,1757029846785,-480.0,0.00019654,2]
[383609160,1757029846796,-480.0,0.00019655,2]
[383609161,1757029846806,-480.0,0.00019655,2]
[383609162,1757029846817,-522.95,0.00019655,2]
[383609163,1757029846828,-4805.67,0.00019655,2]
[383609164,1757029846839,-567.27,0.00019655,2]
[383609165,1757029846849,-486.02,0.00019655,2]
[383609166,1757029846859,-151.0,0.00019718,2]
[383609167,1757029846869,-151.0,0.00019718,2]
[383609168,1757029846878,-151.26354934,0.00019718,2]
[383609169,1757029846889,-151.0,0.00019718,2]
[383609170,1757029846898,-151.0,0.00019718,2]
[383609171,1757029846908,-151.0,0.00019718,2]
[383609172,1757029846917,-151.0,0.00019718,2]
[383609173,1757029846927,-151.0,0.00019718,2]
[383609174,1757029846936,-151.0,0.00019718,2]
[383609175,1757029846946,-1000.0,0.00019718,2]
[383609176,1757029846955,-151.0,0.00019718,2]
[383609177,1757029846965,-151.0,0.00019718,2]
[383609178,1757029846975,-187.78006525,0.00019718,2]
[383609179,1757029846984,-2347.87260389,0.00019718,2]
[383609180,1757029846994,-1000.0,0.00019718,2]
[383609181,1757029847003,-151.0,0.00019718,2]
[383609182,1757029847013,-1000.0,0.00019718,2]
[383609183,1757029847023,-151.0,0.00019718,2]
[383609184,1757029847032,-297.0,0.00019718,2]
[383609185,1757029847042,-1000.0,0.00019718,2]
[383609186,1757029847052,-151.0,0.00019718,2]
[383609187,1757029847061,-1000.0,0.00019718,2]
[383609188,1757029847071,-207.61273743,0.00019718,2]
[383609189,1757029847080,-1000.0,0.00019718,2]
[383609190,1757029847090,-1000.0,0.00019718,2]
[383609191,1757029847100,-1000.0,0.00019718,2]